bitfinex/quotes_SOLUSD_20250609
["timestamp","ask_amount","ask_price","bid_price","bid_amount"]
[1749490472732,6.40542997,156.12,156.09,19.53514822]
[1749490473526,6.40542997,156.12,156.08,19.53514822]
[1749490474233,25.94057819,156.12,156.08,19.53514822]
[1749490475662,6.4061499,156.1,156.07,38.18479708]
[1749490476025,6.4061499,156.1,156.07,18.64964886]
[1749490476338,25.94129812,156.1,156.07,18.64964886]
[1749490476847,6.4061499,156.1,156.07,18.64964886]
[1749490477332,19.53514822,156.09,156.06,29.00964886]
[1749490477944,25.94211844,156.09,156.06,29.00964886]
[1749490479142,19.53514822,156.07,156.06,10.36]
[1749490479443,19.53514822,156.07,156.02,88.08479708]
[1749490479642,19.53514822,156.06,156.02,88.08479708]
[1749490479825,19.53514822,156.06,156.02,48.54479708]
[1749490480025,25.94335071,156.05,156.02,29.00964886]
[1749490480230,19.53514822,156.03,156.02,10.36]
[1749490481322,25.94417212,156.03,156.02,10.36]
[1749490482444,41.96673188,156.03,155.99,36.9]
[1749490482747,19.53514822,156.0,155.97,18.64964886]
[1749490483446,6.41066735,155.99,155.97,18.64964886]
[1749490483962,6.40943468,156.02,155.97,18.64964886]
[1749490484117,19.53514822,156.0,155.97,18.64964886]
[1749490485032,6.40943468,156.02,155.97,18.64964886]
[1749490485237,19.53514822,156.0,155.97,18.64964886]
[1749490485547,19.53514822,155.99,155.96,13.10302556]
[1749490485855,19.53514822,156.0,155.96,13.10302556]
[1749490486733,6.41066735,155.99,155.96,13.10302556]
[1749490486939,19.53514822,155.98,155.96,13.10302556]
[1749490488364,6.40984552,156.01,155.97,38.18479708]
[1749490488662,25.9445829,156.02,155.97,38.18479708]
[1749490489328,19.53514822,156.01,155.97,38.18479708]
[1749490489951,25.94523482,156.01,155.97,38.18479708]
[1749490491136,6.4100866,156.01,155.97,38.18479708]
[1749490491939,6.40820249,156.05,155.99,18.64964886]
[1749490492147,19.53514822,156.04,156.0,19.53514822]
[1749490492339,6.40820249,156.05,156.01,18.64964886]
[1749490492543,6.40788978,156.06,156.01,38.18479708]
[1749490492747,25.943038,156.06,156.02,19.53514822]
[1749490494548,6.40753359,156.07,156.05,19.53514822]
[1749490495566,6.40697078,156.08,156.05,19.53514822]
[1749490496274,6.40697078,156.08,156.06,19.53514822]
[1749490496775,6.40697078,156.08,156.05,19.53514822]
[1749490497063,19.53514822,156.07,156.03,38.18479708]
[1749490497268,6.40697078,156.08,156.03,38.18479708]
[1749490497443,25.942119,156.08,156.04,19.53514822]
[1749490497644,19.53514822,156.07,156.03,38.18479708]
[1749490498372,25.942119,156.08,156.04,19.53514822]
[1749490499644,16.0164252,156.09,156.04,19.53514822]
[1749490499847,19.53514822,156.08,156.04,19.53514822]
[1749490500290,6.4061499,156.1,156.06,19.53514822]
[1749490500768,25.94129812,156.1,156.06,19.53514822]
[1749490500942,6.4061499,156.1,156.06,19.53514822]
[1749490501870,6.4061499,156.1,156.07,18.64964886]
[1749490502089,6.4061499,156.1,156.07,38.18479708]
[1749490503393,6.4061499,156.1,156.08,19.53514822]
[1749490503688,6.40517989,156.13,156.09,19.53514822]
[1749490503989,19.53514822,156.15,156.11,19.53514822]
[1749490504295,19.53514822,156.14,156.1,19.53514822]
[1749490504862,25.93924684,156.15,156.11,19.53514822]
[1749490505061,6.40409862,156.15,156.11,19.53514822]
[1749490505367,6.40409862,156.15,156.12,19.53514822]
[1749490507804,6.40368852,156.16,156.12,38.18479708]
[1749490508662,19.53514822,156.14,156.11,10.34]
[1749490508865,19.53514822,156.12,156.11,10.34]
[1749490509168,61.95290983,156.16,156.11,10.34]
[1749490509376,19.53514822,156.14,156.11,10.34]
[1749490509587,19.53514822,156.13,156.11,10.34]
[1749490510990,19.53514822,156.14,156.11,10.34]
[1749490511195,61.95290983,156.16,156.11,10.34]
[1749490511378,25.94003879,156.14,156.11,10.34]
[1749490511694,19.53514822,156.13,156.11,10.34]
[1749490511989,41.95131072,156.14,156.11,10.34]
[1749490512205,25.94003879,156.14,156.11,10.34]
[1749490513600,39.54,156.16,156.12,18.64964886]
[1749490513601,6.40409862,156.15,156.12,18.64964886]
[1749490513774,6.40409862,156.15,156.12,38.18479708]
[1749490514091,6.40409862,156.15,156.12,18.64964886]
[1749490514271,25.93924684,156.15,156.12,18.64964886]
[1749490514885,25.93924684,156.15,156.11,29.87514822]
[1749490515082,19.53514822,156.14,156.11,10.34]
[1749490515800,22.41434517,156.15,156.11,10.34]
[1749490515801,19.53514822,156.12,156.11,10.34]
[1749490516296,19.53514822,156.12,156.07,126.24]
[1749490516469,19.53514822,156.1,156.07,10.34]
[1749490516669,19.53514822,156.11,156.07,10.34]
[1749490516871,19.53514822,156.12,156.07,29.87514822]
[1749490517096,19.53514822,156.11,156.07,29.87514822]
[1749490517275,19.53514822,156.11,156.07,10.34]
[1749490517472,19.53514822,156.1,156.07,10.34]
[1749490517998,6.40656031,156.09,156.07,10.34]
[1749490518573,19.53514822,156.08,156.07,10.34]
[1749490518974,19.53514822,156.08,156.04,18.64964886]
[1749490519196,22.4229611,156.09,156.04,18.64964886]
[1749490519197,19.53514822,156.07,156.04,18.64964886]
[1749490519894,35.55154901,156.09,156.04,38.18479708]
[1749490520098,35.55154901,156.09,156.04,18.64964886]
[1749490520276,25.942119,156.08,156.04,18.64964886]
[1749490520970,19.53514822,156.07,156.04,18.64964886]
[1749490521621,24.07219774,156.08,155.96,15.48876712]
[1749490521896,6.4090239,156.03,156.0,38.18479708]
[1749490522101,6.4090239,156.03,156.0,18.64964886]
[1749490522307,6.4090239,156.03,156.0,38.18479708]
[1749490522603,25.94417212,156.03,156.0,18.64964886]
[1749490523027,6.4090239,156.03,156.0,18.64964886]
[1749490523298,19.53514822,156.01,156.0,18.64964886]
[1749490523490,19.53514822,156.02,156.0,18.64964886]
[1749490523705,25.94417212,156.03,155.98,38.18479708]
[1749490524387,19.53514822,156.02,155.98,18.64964886]
[1749490524590,19.53514822,156.01,155.98,18.64964886]
[1749490525000,19.53514822,156.02,155.98,18.64964886]
[1749490525205,19.53514822,156.01,155.98,18.64964886]
[1749490525407,19.53514822,156.01,155.96,2.74302556]
[1749490525589,19.53514822,156.0,155.97,18.64964886]
[1749490525981,6.41066735,155.99,155.97,38.18479708]
[1749490526786,6.41066735,155.99,155.97,18.64964886]
[1749490526986,6.41066735,155.99,155.96,2.74302556]
[1749490527207,25.94581557,155.99,155.96,2.74302556]
[1749490528393,19.53514822,155.98,155.96,2.74302556]
[1749490528987,19.53514822,155.97,155.96,2.74302556]
[1749490529818,25.9466376,155.97,155.96,2.74302556]
[1749490530397,6.41148938,155.97,155.96,2.74302556]
[1749490530598,6.41025641,156.0,155.96,40.92782264]
[1749490530997,25.94540463,156.0,155.96,40.92782264]
[1749490531510,19.53514822,155.99,155.96,21.39267442]
[1749490531685,6.41025641,156.0,155.96,2.74302556]
[1749490531686,19.53514822,155.98,155.96,2.74302556]
[1749490531891,22.43589743,156.0,155.96,2.74302556]
[1749490531892,19.53514822,155.99,155.96,2.74302556]
[1749490533124,16.02564102,156.0,155.96,2.74302556]
[1749490533303,35.56078924,156.0,155.96,2.74302556]
[1749490533903,6.41066735,155.99,155.96,2.74302556]
[1749490535509,19.53514822,155.98,155.96,2.74302556]
[1749490536913,19.53514822,155.99,155.96,2.74302556]
[1749490537099,22.43445932,156.01,155.96,2.74302556]
[1749490537295,19.53514822,155.99,155.96,2.74302556]
[1749490538022,22.43445932,156.01,155.96,2.74302556]
[1749490538317,19.53514822,155.99,155.96,2.74302556]
[1749490539394,22.43445932,156.01,155.96,2.74302556]
[1749490539595,19.53514822,155.98,155.96,2.74302556]
[1749490540100,19.53514822,155.99,155.96,2.74302556]
[1749490540512,6.41025641,156.0,155.96,2.74302556]
[1749490540513,6.41025641,156.0,155.97,19.53514822]
[1749490540818,6.41025641,156.0,155.96,22.27817378]
[1749490541320,25.94540463,156.0,155.96,22.27817378]
[1749490543246,19.53514822,155.99,155.96,21.39267442]
[1749490543791,19.53514822,155.99,155.96,2.74302556]
[1749490544020,19.53514822,155.98,155.96,2.74302556]
[1749490544830,6.41120338,155.98,155.96,2.74302556]
[1749490545122,6.41083399,155.99,155.96,2.74302556]
[1749490545320,6.41083399,155.99,155.96,22.27817378]
[1749490547126,6.41083399,155.99,155.96,2.74302556]
[1749490547299,6.41083399,155.99,155.96,21.39267442]
[1749490548232,6.41083399,155.99,155.96,40.92782264]
[1749490549532,19.53514822,156.0,155.96,40.92782264]
[1749490549700,5.89517794,156.13,156.0,18.64964886]
[1749490549701,1.6273,156.06,156.0,18.64964886]
[1749490549898,21.16244822,156.06,156.02,19.53514822]
[1749490550124,19.53514822,156.06,156.02,19.53514822]
[1749490550500,6.40820249,156.05,156.02,19.53514822]
[1749490550713,19.53514822,156.07,156.03,19.53514822]
[1749490550904,19.53514822,156.09,156.05,19.53514822]
[1749490551144,1.6273,156.1,156.0,48.52479708]
[1749490551145,19.53514822,156.08,156.04,19.53514822]
[1749490551930,6.4073813,156.07,156.04,19.53514822]
[1749490553528,84.6377418,156.14,156.04,19.53514822]
[1749490553529,16.01272175,156.13,156.05,76.52544886]
[1749490553716,16.01272175,156.13,156.09,19.53514822]
[1749490553717,35.54786997,156.13,156.09,19.53514822]
[1749490554027,35.54786997,156.13,156.09,59.09514822]
[1749490554326,19.53514822,156.12,156.09,39.56]
[1749490554709,6.40544588,156.12,156.09,39.56]
[1749490554905,25.9405941,156.12,156.09,39.56]
[1749490555120,19.53514822,156.1,156.07,49.92]
[1749490555308,6.40544588,156.12,156.07,49.92]
[1749490555309,19.53514822,156.08,156.07,49.92]
[1749490555930,19.53514822,156.09,156.07,49.92]
[1749490556715,6.40697078,156.08,156.07,49.92]
[1749490558736,6.40697078,156.08,156.05,19.53514822]
[1749490558913,6.40697078,156.08,156.05,69.41514822]
[1749490560218,22.41865231,156.12,156.05,69.41514822]
[1749490560529,19.53514822,156.09,156.05,69.41514822]
[1749490561232,6.40697078,156.08,156.05,69.41514822]
[1749490562330,6.40672435,156.09,156.06,19.53514822]
[1749490562710,25.94187257,156.09,156.05,49.88]
[1749490562922,19.53514822,156.08,156.05,49.88]
[1749490563316,25.94252952,156.07,156.05,49.88]
[1749490564011,25.94252952,156.07,156.01,56.45514822]
[1749490564012,19.53514822,156.06,156.01,56.45514822]
[1749490564314,6.4073813,156.07,156.01,86.8]
[1749490564315,19.53514822,156.05,156.01,86.8]
[1749490565123,19.53514822,156.04,156.01,86.8]
[1749490565317,6.4090239,156.03,156.01,86.8]
[1749490565535,6.40871874,156.04,156.01,106.33514822]
[1749490565755,6.40871874,156.04,156.01,86.8]
[1749490565935,6.40871874,156.04,156.01,106.33514822]
[1749490566127,25.94386696,156.04,156.01,47.26]
[1749490567414,19.53514822,156.02,156.01,10.34]
[1749490568012,19.53514822,156.02,155.98,58.18964886]
[1749490568013,19.53514822,156.02,155.98,18.64964886]
[1749490568215,19.53514822,156.01,155.98,18.64964886]
[1749490568417,25.94538927,156.01,155.98,18.64964886]
[1749490569530,6.41024105,156.01,155.98,38.18479708]
[1749490571136,42.01945824,156.07,156.0,19.53514822]
[1749490571346,19.53514822,156.05,156.01,18.64964886]
[1749490571543,19.53514822,156.04,156.01,18.64964886]
[1749490572353,25.94415423,156.04,156.01,18.64964886]
[1749490574247,6.40900601,156.04,156.01,38.18479708]
[1749490574541,25.9434727,156.05,156.01,38.18479708]
[1749490574745,6.40832448,156.05,156.01,38.18479708]
[1749490574949,6.40832448,156.05,156.01,77.72479708]
[1749490577359,6.40697078,156.08,156.04,19.53514822]
[1749490577557,25.942119,156.08,156.04,19.53514822]
[1749490580340,25.942119,156.08,156.03,18.64964886]
[1749490580535,25.942119,156.08,156.04,19.53514822]
[1749490585457,19.53514822,156.06,156.03,18.64964886]
[1749490585659,19.53514822,156.04,156.0,10.34]
[1749490586157,19.53514822,156.03,156.0,10.34]
[1749490587629,6.40943468,156.02,156.0,10.34]
[1749490588633,6.40917226,156.03,156.0,10.34]
[1749490588833,6.40917226,156.03,156.0,29.87514822]
[1749490590863,6.40917226,156.03,156.0,10.34]
[1749490593653,19.53514822,156.02,156.0,10.34]
[1749490593859,25.94432048,156.03,156.0,10.34]
[1749490595063,6.40917226,156.03,156.0,10.34]
[1749490595236,19.53514822,156.02,156.0,10.34]
[1749490595436,6.40917226,156.03,156.0,10.34]
[1749490595840,25.94432048,156.03,156.0,10.34]
[1749490596961,19.53514822,156.02,156.0,10.34]
[1749490597662,19.53514822,156.01,156.0,10.34]
[1749490597973,19.53514822,156.01,155.96,13.08302556]
[1749490598272,19.53514822,155.99,155.96,13.08302556]
[1749490598634,6.41107834,155.98,155.96,13.08302556]
[1749490599777,25.94622656,155.98,155.96,13.08302556]
[1749490600261,19.53514822,155.97,155.96,13.08302556]
[1749490600859,25.9466376,155.97,155.96,13.08302556]
[1749490601069,6.41148938,155.97,155.96,13.08302556]
[1749490601960,6.41148938,155.97,155.96,2.74302556]
[1749490601961,25.9466376,155.97,155.96,2.74302556]
[1749490605639,32.88516074,155.97,155.96,2.74302556]
[1749490606756,32.88516074,155.97,155.9,8.70140542]
[1749490606757,19.53514822,155.91,155.9,8.70140542]
[1749490608870,25.94910498,155.91,155.9,8.70140542]
[1749490611258,25.94880736,155.92,155.9,8.70140542]
[1749490611454,19.53514822,155.91,155.9,8.70140542]
[1749490611654,6.41365914,155.92,155.9,8.70140542]
[1749490611980,19.53514822,155.91,155.9,8.70140542]
[1749490616289,19.53514822,155.92,155.9,8.70140542]
[1749490617682,19.53514822,155.93,155.9,8.70140542]
[1749490618185,25.94832328,155.93,155.9,8.70140542]
[1749490618679,26.0,155.94,155.9,15.11569324]
[1749490618863,19.53514822,155.95,155.91,19.53514822]
[1749490619178,19.53514822,155.94,155.91,18.64964886]
[1749490620473,25.94776753,155.95,155.91,38.18479708]
[1749490621062,6.41261931,155.95,155.92,19.53514822]
[1749490621481,25.94776753,155.95,155.91,38.18479708]
[1749490621986,6.41261931,155.95,155.92,19.53514822]
[1749490622585,25.94710234,155.96,155.93,18.64964886]
[1749490624265,101.14175729,156.0,155.93,38.18479708]
[1749490624266,6.41161672,155.97,155.93,38.18479708]
[1749490624581,6.41123607,155.98,155.94,19.53514822]
[1749490625080,25.94638429,155.98,155.94,19.53514822]
[1749490627058,6.41123607,155.98,155.94,19.53514822]
[1749490627972,25.94638429,155.98,155.94,19.53514822]
[1749490629557,6.41123607,155.98,155.95,19.53514822]
[1749490629757,6.40991235,156.01,155.97,19.53514822]
[1749490629957,6.40991235,156.01,155.98,19.53514822]
[1749490630462,6.40991235,156.01,155.97,29.89514822]
[1749490630666,25.94506057,156.01,155.97,29.89514822]
[1749490631090,19.53514822,155.99,155.97,10.36]
[1749490631577,19.53514822,156.0,155.97,10.36]
[1749490632291,19.53514822,155.99,155.97,10.36]
[1749490632464,6.41107834,155.98,155.97,10.36]
[1749490634187,6.41066735,155.99,155.97,10.36]
[1749490636792,25.94581557,155.99,155.97,10.36]
[1749490637793,19.53514822,156.02,155.97,29.89514822]
[1749490638693,25.9445829,156.02,155.97,29.89514822]
[1749490640197,19.53514822,156.01,155.97,29.89514822]
[1749490640570,25.94513315,156.01,155.97,29.89514822]
[1749490640881,6.40998493,156.01,155.97,29.89514822]
[1749490641988,25.94513315,156.01,155.97,10.36]
[1749490642195,25.94513315,156.01,155.97,29.89514822]
[1749490642709,6.40947324,156.02,155.98,38.18479708]
[1749490643008,25.94335071,156.05,156.01,19.53514822]
[1749490643187,6.40792469,156.06,156.02,29.87514822]
[1749490643513,25.94307291,156.06,156.02,29.87514822]
[1749490643829,25.94307291,156.06,156.02,10.34]
[1749490644592,25.94307291,156.06,156.02,29.87514822]
[1749490645279,25.94307291,156.06,156.02,10.34]
[1749490645701,25.94307291,156.06,156.02,29.87514822]
[1749490649994,6.40792469,156.06,156.03,19.53514822]
[1749490651717,6.4073813,156.07,156.04,18.64964886]
[1749490651886,6.40710165,156.08,156.05,19.53514822]
[1749490653325,25.94224987,156.08,156.05,18.64964886]
[1749490656085,6.40710165,156.08,156.05,19.53514822]
[1749490656789,6.40674425,156.09,156.06,19.53514822]
[1749490656989,6.40630972,156.1,156.08,19.53514822]
[1749490657203,19.53514822,156.12,156.08,19.53514822]
[1749490657909,51.94032727,156.13,156.08,19.53514822]
[1749490658414,19.53514822,156.12,156.08,19.53514822]
[1749490659414,1.6039,156.18,156.11,19.53514822]
[1749490659593,6.40163881,156.21,156.15,19.53514822]
[1749490659914,19.53514822,156.2,156.16,19.53514822]
[1749490660129,19.53514822,156.19,156.16,18.64964886]
[1749490660293,19.53514822,156.18,156.13,38.18479708]
[1749490661203,19.53514822,156.17,156.13,38.18479708]
[1749490661403,25.93873799,156.17,156.13,38.18479708]
[1749490662206,19.53514822,156.16,156.13,18.64964886]
[1749490662412,25.93873799,156.17,156.13,38.18479708]
[1749490667020,6.40358977,156.17,156.13,38.18479708]
[1749490667519,6.40358977,156.17,156.15,18.64964886]
[1749490669204,25.93873799,156.17,156.13,19.53514822]
[1749490669523,25.93873799,156.17,156.14,18.64964886]
[1749490670091,6.40358977,156.17,156.14,38.18479708]
[1749490670714,25.93873799,156.17,156.14,18.64964886]
[1749490671025,6.40358977,156.17,156.15,19.53514822]
[1749490671717,6.40358977,156.17,156.12,49.88]
[1749490671907,6.40358977,156.17,156.15,18.64964886]
[1749490672120,6.40358977,156.17,156.15,28.96964886]
[1749490674318,19.53514822,156.16,156.15,10.32]
[1749490675024,6.40358977,156.17,156.15,10.32]
[1749490675205,25.93873799,156.17,156.15,10.32]
[1749490676509,19.53514822,156.16,156.15,10.32]
[1749490676803,25.93883674,156.16,156.15,10.32]
[1749490678926,25.93883674,156.16,156.12,39.54]
[1749490678927,25.93883674,156.16,156.11,18.64964886]
[1749490679221,19.53514822,156.15,156.13,18.64964886]
[1749490679605,19.53514822,156.14,156.13,18.64964886]
[1749490679812,19.53514822,156.15,156.13,18.64964886]
[1749490681227,6.40450877,156.14,156.13,18.64964886]
[1749490681421,6.40450877,156.14,156.12,10.32]
[1749490681610,6.40450877,156.14,156.09,1.563]
[1749490681611,6.40450877,156.14,156.1,77.68479708]
[1749490682236,25.93965699,156.14,156.1,77.68479708]
[1749490684313,6.40450877,156.14,156.1,77.68479708]
[1749490686628,25.93965699,156.14,156.1,77.68479708]
[1749490688732,6.40392527,156.16,156.13,19.53514822]
[1749490689030,6.40392527,156.16,156.15,18.64964886]
[1749490691317,42.00613806,156.2,156.15,38.18479708]
[1749490691625,25.93760676,156.19,156.15,18.64964886]
[1749490692313,19.53514822,156.18,156.15,18.64964886]
[1749490692513,6.40327847,156.17,156.15,18.64964886]
[1749490694411,6.40327847,156.17,156.15,18.14964886]
[1749490695725,6.40294721,156.18,156.15,37.68479708]
[1749490697450,11.18872461,156.18,156.15,37.68479708]
[1749490698323,4.7857774,156.17,156.15,37.68479708]
[1749490698525,6.40294721,156.18,156.15,37.68479708]
[1749490698742,6.40294721,156.18,156.15,18.14964886]
[1749490698945,25.93809543,156.18,156.15,18.14964886]
[1749490699131,4.7933246,156.17,156.15,18.14964886]
[1749490699333,25.93809543,156.18,156.15,18.14964886]
[1749490699532,4.79331364,156.17,156.15,18.14964886]
[1749490699733,6.40294721,156.18,156.15,18.14964886]
[1749490699932,4.79331364,156.17,156.15,18.14964886]
[1749490700140,6.40294721,156.18,156.15,18.14964886]
[1749490700340,4.7933152,156.17,156.15,18.14964886]
[1749490700632,25.93760676,156.19,156.15,18.14964886]
[1749490700859,19.53514822,156.17,156.15,18.14964886]
[1749490701023,4.79333662,156.16,156.15,18.14964886]
[1749490701426,19.53514822,156.17,156.15,18.14964886]
[1749490701626,19.53514822,156.18,156.15,18.14964886]
[1749490701923,4.79377883,156.17,156.15,18.14964886]
[1749490702124,22.4086049,156.19,156.15,18.14964886]
[1749490702428,24.3288913,156.18,156.15,18.14964886]
[1749490702621,6.40368852,156.16,156.15,18.14964886]
[1749490704745,6.40327847,156.17,156.15,18.14964886]
[1749490707742,25.93842669,156.17,156.14,10.32]
[1749490708524,41.94662288,156.17,156.14,10.32]
[1749490708728,24.32937155,156.16,156.14,10.32]
[1749490708928,19.53514822,156.16,156.14,10.32]
[1749490709449,41.94662288,156.17,156.14,10.32]
[1749490709647,4.79429167,156.16,156.14,10.32]
[1749490709828,41.94662288,156.17,156.14,10.32]
[1749490710023,4.79424845,156.16,156.14,10.32]
[1749490710241,41.94662288,156.17,156.14,10.32]
[1749490710444,24.32936605,156.16,156.14,10.32]
[1749490710625,19.53514822,156.16,156.14,10.32]
[1749490711955,6.40409862,156.15,156.14,28.96964886]
[1749490717357,6.40409862,156.15,156.14,18.64964886]
[1749490719960,6.40368852,156.16,156.14,18.64964886]
[1749490723461,12.60269407,156.17,156.14,18.64964886]
[1749490723759,4.79502958,156.16,156.14,18.64964886]
[1749490723964,22.4086049,156.19,156.14,18.64964886]
[1749490724132,22.4086049,156.19,156.15,18.64964886]
[1749490724133,4.7948606,156.18,156.15,18.64964886]
[1749490724333,4.79432889,156.17,156.15,18.64964886]
[1749490724532,35.01129897,156.19,156.15,12.60269407]
[1749490724762,4.79424692,156.18,156.15,12.60269407]
[1749490724950,35.01129897,156.19,156.15,12.60269407]
[1749490725140,6.40327847,156.17,156.15,12.60269407]
[1749490725342,6.40327847,156.17,156.16,18.64964886]
[1749490726254,6.40286848,156.18,156.16,38.3349833]
[1749490726764,6.40286848,156.18,156.16,18.64964886]
[1749490729167,6.40245854,156.19,156.16,38.3349833]
[1749490730273,6.40245854,156.19,156.16,18.64964886]
[1749490730274,26.08779298,156.19,156.16,18.64964886]
[1749490730454,24.47959112,156.18,156.16,18.64964886]
[1749490730653,19.68533444,156.18,156.16,18.64964886]
[1749490731470,6.40327847,156.17,156.16,18.64964886]
[1749490732781,30.883697,156.17,156.15,39.48]
[1749490733074,26.08861291,156.17,156.15,39.48]
[1749490733571,6.40327847,156.17,156.15,39.48]
[1749490734262,6.40327847,156.17,156.14,77.8149833]
[1749490735550,6.40327847,156.17,156.14,58.12964886]
[1749490736557,19.68533444,156.17,156.14,58.12964886]
[1749490736862,19.68533444,156.18,156.14,77.8149833]
[1749490737066,4.79560828,156.17,156.14,77.8149833]
[1749490737245,19.68533444,156.18,156.14,77.8149833]
[1749490737446,4.79562909,156.17,156.14,77.8149833]
[1749490737645,6.40327847,156.17,156.14,77.8149833]
[1749490740974,19.68533444,156.16,156.14,58.12964886]
[1749490741155,19.68533444,156.15,156.14,18.64964886]
[1749490741849,24.48122841,156.16,156.14,18.64964886]
[1749490742165,19.68533444,156.16,156.14,18.64964886]
[1749490742950,6.40409862,156.15,156.14,18.64964886]
[1749490743378,6.40409862,156.15,156.13,18.64964886]
[1749490743984,6.40409862,156.15,156.12,10.32]
[1749490743985,24.48188647,156.14,156.12,10.32]
[1749490744191,22.41434517,156.15,156.12,10.32]
[1749490744192,19.68533444,156.13,156.12,10.32]
[1749490744470,24.48135446,156.13,156.12,10.32]
[1749490744865,30.88627343,156.13,156.12,10.32]
[1749490745061,46.89857087,156.13,156.09,39.48]
[1749490745258,46.89857087,156.13,156.08,18.64964886]
[1749490745259,19.68533444,156.11,156.08,18.64964886]
[1749490745645,19.68533444,156.1,156.08,18.64964886]
[1749490746054,22.41721641,156.13,156.08,18.64964886]
[1749490746282,19.68533444,156.1,156.08,18.64964886]
[1749490747777,11.19485658,156.12,156.08,18.64964886]
[1749490748088,26.09078857,156.12,156.08,18.64964886]
[1749490749583,26.09108418,156.11,156.08,18.64964886]
[1749490750580,19.68533444,156.09,156.07,10.32]
[1749490751475,6.40697078,156.08,156.07,28.96964886]
[1749490751683,26.09205482,156.09,156.07,28.96964886]
[1749490754184,19.68533444,156.1,156.07,28.96964886]
[1749490755478,19.68533444,156.09,156.07,28.96964886]
[1749490756594,26.09209216,156.09,156.07,28.96964886]
[1749490758071,6.40675772,156.09,156.07,28.96964886]
[1749490758967,26.09066367,156.12,156.08,18.64964886]
[1749490759389,6.40532923,156.12,156.08,18.64964886]
[1749490759682,26.09066367,156.12,156.09,18.64964886]
[1749490760096,6.40532923,156.12,156.09,18.64964886]
[1749490761069,26.09043202,156.13,156.09,38.3349833]
[1749490761878,19.68533444,156.12,156.08,38.3349833]
[1749490762864,19.68533444,156.13,156.08,44.74185383]
[1749490763069,6.40409862,156.15,156.1,38.3349833]
[1749490763373,19.68533444,156.14,156.1,38.3349833]
[1749490764706,19.68533444,156.14,156.1,18.64964886]
[1749490765194,19.68533444,156.13,156.1,18.64964886]
[1749490767199,26.09003514,156.14,156.1,25.05575112]
[1749490767373,26.09003514,156.14,156.1,18.64964886]
[1749490771209,26.09003514,156.14,156.1,38.3349833]
[1749490771399,6.4047007,156.14,156.1,44.74108735]
[1749490772304,19.68533444,156.15,156.1,44.74108735]
[1749490772885,19.68533444,156.15,156.1,38.3349833]
[1749490773101,26.09018497,156.14,156.1,18.64964886]
[1749490773698,26.09018497,156.14,156.1,38.3349833]
[1749490774002,6.40485053,156.14,156.1,38.3349833]
[1749490774704,19.68533444,156.15,156.1,38.3349833]
[1749490774705,26.08961807,156.15,156.1,44.74104626]
[1749490775002,26.08961807,156.15,156.1,38.3349833]
[1749490775198,19.68533444,156.14,156.1,18.64964886]
[1749490775401,12.60647587,156.14,156.1,31.25612473]
[1749490775704,12.60647587,156.14,156.1,18.64964886]
[1749490776010,12.60647587,156.14,156.1,31.25612473]
[1749490776581,12.60647587,156.14,156.1,18.64964886]
[1749490776912,12.60647587,156.14,156.1,31.25612473]
[1749490777113,19.01118339,156.14,156.1,31.25612473]
[1749490777622,12.60647587,156.14,156.1,47.9822481]
[1749490778114,6.40457302,156.14,156.1,41.57612473]
[1749490778307,19.01104889,156.14,156.1,41.57612473]
[1749490779600,19.01104889,156.14,156.1,28.96964886]
[1749490779784,12.60647587,156.13,156.1,28.96964886]
[1749490780194,19.01104889,156.14,156.1,28.96964886]
[1749490784997,19.01104889,156.14,156.1,41.57612473]
[1749490787419,6.40457302,156.14,156.1,41.57612473]
[1749490787623,12.60647587,156.14,156.1,41.57612473]
[1749490788625,12.60647587,156.15,156.1,41.57612473]
[1749490789428,6.40368852,156.16,156.1,47.98223268]
[1749490789597,6.40421313,156.15,156.11,12.60647587]
[1749490790499,6.40394741,156.16,156.12,31.25612473]
[1749490791294,6.40394741,156.16,156.14,18.64964886]
[1749490791525,6.40163881,156.21,156.16,18.933972]
[1749490791728,6.40163881,156.21,156.17,12.60647587]
[1749490792030,11.18947607,156.21,156.17,12.60647587]
[1749490792397,6.40163881,156.21,156.17,12.60647587]
[1749490793606,23.79543658,156.23,156.18,31.25612473]
[1749490793922,6.40112345,156.23,156.2,18.64964886]
[1749490794119,6.40112345,156.23,156.2,12.60647587]
[1749490794692,6.40112345,156.23,156.19,12.60647587]
[1749490794896,6.40112345,156.23,156.2,12.60647587]
[1749490795095,6.40112345,156.23,156.19,12.60647587]
[1749490795316,6.40112345,156.23,156.19,19.6735996]
[1749490796619,6.40112345,156.23,156.21,18.64964886]
[1749490798452,19.6735996,156.24,156.22,18.64964886]
[1749490798453,6.40050539,156.24,156.22,18.64964886]
[1749490799200,15.99641977,156.29,156.22,19.6735996]
[1749490799407,19.6735996,156.27,156.23,18.64964886]
[1749490799622,6.39959042,156.26,156.23,18.64964886]
[1749490799823,6.39959042,156.26,156.24,18.64964886]
[1749490800432,6.39754334,156.31,156.25,88.08324846]
[1749490800607,26.07114294,156.31,156.26,19.6735996]